lending/lending_fUSD_20251124
["ID","MTS","AMOUNT","RATE_DAILY","PERIOD"]
[394807258,1763971838961,-500.0,0.00038068,5]
[394807259,1763971838973,-335.51242062,0.00038068,2]
[394807260,1763971838985,-538.54,0.00038173,2]
[394807261,1763971838996,-159.7,0.00038183,2]
[394807262,1763971839006,-150.0,0.00038217,7]
[394807263,1763971839017,-295.86253637,0.00038244,2]
[394807264,1763971839030,-242.03118416,0.00038247,2]
[394807265,1763971839040,-170.84,0.000383,30]
[394807266,1763971839051,-150.0,0.0003835,7]
[394807267,1763971839061,-150.0,0.0003835,7]
[394807268,1763971839072,-500.0,0.00038356,120]
[394807269,1763971839083,-166.66,0.0003843,30]
[394807270,1763971839093,-538.54,0.00038447,2]
[394807271,1763971839104,-166.57029206,0.00038447,2]
[394807272,1763971839115,-150.0,0.0003845,7]
[394807273,1763971839127,-1346.14932008,0.00038482,4]
[394807274,1763971839138,-5078.95135441,0.00038486,2]
[394807275,1763971839150,-10272.28843735,0.00038492,2]
[394807276,1763971839161,-190.14478538,0.00038597,2]
[394807277,1763971839172,-150.62,0.00038597,2]
[394807278,1763971839183,-2500.0,0.00038607,2]
[394807279,1763971839194,-150.0,0.00038683,7]
[394807280,1763971839206,-1346.14932008,0.00038697,4]
[394807281,1763971839216,-171.60312492,0.00038707,15]
[394807282,1763971839229,-430.18420787,0.00038707,2]
[394807283,1763971839482,-24533.1942,0.00038707,2]
[394807284,1763971839498,-1000.0,0.00038707,2]
[394807285,1763971839508,-538.54,0.00038721,2]
[394807286,1763971839518,-1346.14932008,0.00038795,4]
[394807287,1763971839529,-8076.89592048,0.00038796,4]
[394807288,1763971839539,-500.0,0.00038804,8]
[394807289,1763971839548,-1582.69,0.00038804,8]
[394807290,1763971839558,-500.0,0.00038804,8]
[394807291,1763971839568,-500.0,0.00038804,8]
[394807292,1763971839578,-500.0,0.00038804,8]
[394807293,1763971839587,-500.0,0.00038804,8]
[394807294,1763971839597,-500.0,0.00038804,8]
[394807295,1763971839607,-500.0,0.00038804,8]
[394807296,1763971839620,-500.0,0.00038804,8]
[394807297,1763971839630,-500.0,0.00038804,8]
[394807298,1763971839639,-609.58,0.00038804,2]
[394807299,1763971839649,-500.0,0.00038804,8]
[394807300,1763971839659,-500.0,0.00038804,8]
[394807301,1763971839668,-500.0,0.00038804,8]
[394807302,1763971839678,-327.58380862,0.00038804,8]
[394807303,1763971839687,-500.0,0.00038804,8]
[394807304,1763971839698,-500.0,0.00038804,8]
[394807305,1763971839708,-500.0,0.00038804,8]
[394807306,1763971839717,-500.0,0.00038804,8]
[394807307,1763971839727,-500.0,0.00038804,8]
[394807308,1763971839737,-500.0,0.00038804,8]
[394807309,1763971839746,-500.0,0.00038804,8]
[394807310,1763971839756,-500.0,0.00038804,8]
[394807311,1763971839765,-500.0,0.00038804,8]
[394807312,1763971839776,-500.0,0.00038804,8]
[394807313,1763971839785,-500.0,0.00038804,8]
[394807314,1763971839795,-341.10129011,0.00038804,8]
[394807315,1763971839805,-500.0,0.00038804,8]
[394807316,1763971839814,-500.0,0.00038804,8]
[394807317,1763971839823,-500.0,0.00038804,8]
[394807318,1763971839832,-500.0,0.00038804,8]
[394807319,1763971839842,-500.0,0.00038804,8]
[394807320,1763971839851,-500.0,0.00038805,8]
[394807321,1763971839859,-500.0,0.00038805,8]
[394807322,1763971839869,-500.0,0.00038805,8]
[394807323,1763971839878,-500.0,0.00038805,8]
[394807324,1763971839887,-500.0,0.00038805,8]
[394807325,1763971839896,-500.0,0.00038805,8]
[394807326,1763971839906,-500.0,0.00038805,8]
[394807327,1763971839915,-698.73,0.00038805,8]
[394807328,1763971839925,-502.56,0.00038805,8]
[394807329,1763971839934,-500.0,0.00038805,8]
[394807330,1763971839943,-500.0,0.00038805,8]
[394807331,1763971839952,-500.0,0.00038805,8]
[394807332,1763971839961,-547.28,0.00038805,8]
[394807333,1763971839973,-500.0,0.00038805,8]
[394807334,1763971839982,-500.0,0.00038805,8]
[394807335,1763971839991,-500.0,0.00038805,8]
[394807336,1763971840001,-500.0,0.00038805,8]
[394807337,1763971840011,-500.0,0.00038805,8]
[394807338,1763971840021,-500.0,0.00038805,8]
[394807339,1763971840031,-500.0,0.00038806,8]
[394807340,1763971840041,-500.0,0.00038806,8]
[394807341,1763971840051,-500.0,0.00038806,8]
[394807342,1763971840060,-624.9708388,0.00038806,2]
[394807343,1763971840070,-500.0,0.00038806,8]
[394807344,1763971840080,-516.27662366,0.00038806,8]
[394807345,1763971840089,-500.0,0.00038806,8]
[394807346,1763971840099,-596.39,0.00038806,8]
[394807347,1763971840108,-500.0,0.00038806,8]
[394807348,1763971840118,-500.0,0.00038806,8]
[394807349,1763971840128,-513.60394512,0.00038806,8]
[394807350,1763971840137,-504.30645096,0.00038806,8]
[394807351,1763971840146,-501.82938583,0.00038806,8]
[394807352,1763971840156,-500.0,0.00038806,8]
[394807353,1763971840165,-500.0,0.00038806,8]
[394807354,1763971840174,-500.0,0.00038806,8]
[394807355,1763971840184,-503.96933013,0.00038806,8]
[394807356,1763971840193,-500.0,0.00038806,8]
[394807357,1763971840203,-500.0,0.00038806,8]
[394807358,1763971840212,-500.0,0.00038806,8]
[394807359,1763971840222,-503.06174548,0.00038806,8]
[394807360,1763971840231,-523.38148311,0.00038806,8]
[394807361,1763971840241,-500.0,0.00038806,8]
[394807362,1763971840250,-500.0,0.00038806,8]
[394807363,1763971840259,-500.0,0.00038806,8]
[394807364,1763971840268,-500.0,0.00038806,8]
[394807365,1763971840278,-500.0,0.00038806,8]
[394807366,1763971840287,-500.0,0.00038806,8]
[394807367,1763971840297,-513.64757694,0.00038806,8]
[394807368,1763971840307,-500.0,0.00038806,8]
[394807369,1763971840316,-539.2436399,0.00038806,8]
[394807370,1763971840325,-500.0,0.00038806,8]
[394807371,1763971840334,-500.0,0.00038806,8]
[394807372,1763971840344,-500.0,0.00038806,8]
[394807373,1763971840353,-500.0,0.00038806,8]
[394807374,1763971840362,-500.0,0.00038806,8]
[394807375,1763971840372,-500.0,0.00038806,8]
[394807376,1763971840381,-512.69371524,0.00038806,8]
[394807377,1763971840391,-500.0,0.00038806,8]
[394807378,1763971840400,-500.0,0.00038806,8]
[394807379,1763971840410,-522.94261068,0.00038806,8]
[394807380,1763971840420,-693.75,0.00038806,8]
[394807381,1763971840429,-500.0,0.00038806,8]
[394807382,1763971840438,-500.0,0.00038806,8]
[394807383,1763971840446,-524.64468641,0.00038806,8]
[394807384,1763971840455,-500.0,0.00038806,8]
[394807385,1763971840464,-500.0,0.00038806,8]
[394807386,1763971840473,-500.0,0.00038806,8]
[394807387,1763971840481,-500.0,0.00038806,8]
[394807388,1763971840490,-500.0,0.00038806,8]
[394807389,1763971840498,-500.0,0.00038806,8]
[394807390,1763971840507,-500.0,0.00038806,8]
[394807391,1763971840515,-523.90368588,0.00038806,8]
[394807392,1763971840524,-521.13724328,0.00038806,8]
[394807393,1763971840533,-500.0,0.00038806,8]
[394807394,1763971840541,-500.0,0.00038806,8]
[394807395,1763971840549,-510.34356386,0.00038806,8]
[394807396,1763971840556,-471.35280192,0.00038806,8]
[394807397,1763971840565,-500.0,0.00038806,8]
[394807398,1763971840573,-388.99672676,0.00038806,8]
[394807399,1763971840581,-500.0,0.00038806,8]
[394807400,1763971840589,-500.0,0.00038806,8]
[394807401,1763971840597,-503.26409811,0.00038806,8]
[394807402,1763971840606,-483.65240233,0.00038806,8]
[394807403,1763971840614,-500.0,0.00038806,8]
[394807404,1763971840626,-380.87627712,0.00038806,8]
[394807405,1763971840634,-502.90487024,0.00038806,8]
[394807406,1763971840643,-500.0,0.00038806,8]
[394807407,1763971840652,-500.0,0.00038806,8]
[394807408,1763971840662,-500.0,0.00038806,8]
[394807409,1763971840671,-500.0,0.00038806,8]
[394807410,1763971840680,-500.8423538,0.00038806,8]
[394807411,1763971840690,-500.0,0.00038806,8]
[394807412,1763971840700,-393.5,0.00038806,8]
[394807413,1763971840710,-501.62832025,0.00038806,8]
[394807414,1763971840720,-500.0,0.00038806,8]
[394807415,1763971840729,-500.0,0.00038806,8]
[394807416,1763971840739,-507.14205343,0.00038806,8]
[394807417,1763971840749,-500.0,0.00038806,8]
[394807418,1763971840759,-500.0,0.00038806,8]
[394807419,1763971840769,-500.0,0.00038806,8]
[394807420,1763971840781,-500.0,0.00038806,7]
[394807421,1763971840791,-500.0,0.00038806,7]
[394807423,1763971840801,-500.0,0.00038806,7]
[394807424,1763971840811,-500.0,0.00038806,8]
[394807425,1763971840821,-150.24,0.00038806,8]
[394807426,1763971840831,-500.0,0.00038806,8]
[394807427,1763971840841,-500.0,0.00038806,8]
[394807428,1763971840851,-500.0,0.00038806,8]
[394807429,1763971840860,-500.0,0.00038806,8]
[394807430,1763971840870,-500.0,0.00038806,8]
[394807431,1763971840880,-533.2407796,0.00038806,8]
[394807432,1763971840890,-500.0,0.00038806,8]
[394807433,1763971840899,-534.27114977,0.00038806,8]
[394807434,1763971840909,-500.0,0.00038806,8]
[394807435,1763971840918,-566.75038103,0.00038806,8]
[394807436,1763971840927,-500.0,0.00038806,8]
[394807437,1763971840936,-500.0,0.00038806,8]
[394807438,1763971840946,-548.92,0.00038806,8]
[394807439,1763971840956,-500.0,0.00038806,8]
[394807440,1763971840965,-500.0,0.00038806,8]
[394807441,1763971840976,-500.0,0.00038806,8]
[394807442,1763971840986,-542.90547539,0.00038806,8]
[394807443,1763971840996,-500.0,0.00038806,8]
[394807444,1763971841006,-500.0,0.00038806,8]
[394807445,1763971841017,-500.0,0.00038806,8]
[394807446,1763971841027,-500.0,0.00038806,8]
[394807447,1763971841036,-500.0,0.00038806,8]
[394807448,1763971841046,-500.0,0.00038806,8]
[394807449,1763971841055,-340.3,0.00038806,8]
[394807450,1763971841064,-414.41014957,0.00038806,8]
[394807451,1763971841074,-541.61271093,0.00038806,8]
[394807452,1763971841084,-500.0,0.00038806,8]
[394807453,1763971841093,-191.58,0.00038806,8]
[394807454,1763971841103,-234.70239157,0.00038806,8]
[394807455,1763971841119,-500.0,0.00038806,8]
[394807456,1763971841129,-500.0,0.00038806,8]
[394807457,1763971841139,-505.08384143,0.00038806,8]
[394807458,1763971841150,-500.0,0.00038806,8]
[394807459,1763971841160,-216.31934355,0.00038806,8]
[394807460,1763971841170,-164.78431013,0.00038806,8]
[394807461,1763971841179,-421.22,0.00038806,8]
[394807462,1763971841189,-1000.0,0.00038806,87]
[394807463,1763971841199,-567.02918167,0.00038806,8]
[394807464,1763971841208,-500.0,0.00038806,8]
[394807465,1763971841218,-622.83443556,0.00038806,8]
[394807466,1763971841227,-360.99566684,0.00038806,8]
[394807467,1763971841237,-500.0,0.00038806,8]
[394807468,1763971841246,-347.28714577,0.00038806,8]
[394807469,1763971841255,-500.0,0.00038806,8]
[394807470,1763971841265,-500.0,0.00038806,8]
[394807471,1763971841275,-205.89326415,0.00038806,8]
[394807472,1763971841285,-593.17,0.00038806,8]
[394807473,1763971841295,-507.75449759,0.00038806,8]
[394807474,1763971841305,-500.0,0.00038806,8]
[394807475,1763971841315,-500.0,0.00038806,8]
[394807476,1763971841325,-194.48462232,0.00038806,8]
[394807477,1763971841488,-305.51537768,0.00038806,8]
[394807478,1763971841498,-500.0,0.00038806,8]
[394807479,1763971841509,-500.0,0.00038806,8]
[394807480,1763971841519,-531.35073376,0.00038806,8]
[394807481,1763971841531,-502.35396255,0.00038806,8]
[394807482,1763971841541,-418.81,0.00038806,30]
[394807483,1763971841551,-500.0,0.00038806,8]
[394807484,1763971841560,-500.0,0.00038806,8]
[394807485,1763971841570,-624.94607424,0.00038806,8]
[394807486,1763971841580,-500.0,0.00038806,8]
[394807487,1763971841589,-500.0,0.00038806,8]
[394807488,1763971841598,-500.0,0.00038806,8]
[394807489,1763971841608,-622.55784741,0.00038806,8]
[394807490,1763971841623,-500.0,0.00038806,8]
[394807491,1763971841632,-500.0,0.00038806,8]
[394807492,1763971841640,-500.0,0.00038806,8]
[394807493,1763971841648,-500.0,0.00038806,8]
[394807494,1763971841659,-610.15671961,0.00038806,8]
[394807495,1763971841669,-206.68819396,0.00038806,8]
[394807496,1763971841682,-293.31180604,0.00038806,8]
[394807497,1763971841692,-174.42008353,0.00038806,8]
[394807498,1763971841736,-325.57991647,0.00038806,8]
[394807499,1763971841747,-500.0,0.00038806,8]
[394807500,1763971841758,-232.4,0.00038806,8]
[394807501,1763971841768,-118.80609145,0.00038806,8]
[394807509,1763971847125,-500.0,0.00036803,8]
[394807510,1763971847138,-88475.2384,0.00036804,2]
[394807511,1763971847152,-500.0,0.00036973,5]
[394807512,1763971847165,-1000.0,0.00037521,5]
[394807513,1763971847177,-155.55,0.00038136,2]
[394807514,1763971847191,-500.0,0.00038804,8]
[394807515,1763971847207,-500.0,0.00038805,8]
[394807516,1763971847219,-500.0,0.00038805,8]
[394807517,1763971847233,-226.86131447,0.00038806,8]
[394807518,1763971847247,-500.0,0.00038806,8]
[394807519,1763971847259,-500.0,0.00038806,8]
[394807520,1763971847269,-500.0,0.00038806,8]
[394807521,1763971847281,-500.0,0.00038806,8]
[394807522,1763971847292,-500.0,0.00038806,8]
[394807523,1763971847305,-500.0,0.00038806,8]
[394807524,1763971847316,-500.0,0.00038806,8]
[394807525,1763971847326,-500.0,0.00038806,8]
[394807526,1763971847337,-500.0,0.00038806,8]
[394807527,1763971847349,-500.0,0.00038806,8]
[394807528,1763971847360,-500.0,0.00038806,8]
[394807529,1763971847371,-500.0,0.00038806,8]
[394807530,1763971847382,-500.0,0.00038806,8]
[394807531,1763971847395,-500.0,0.00038806,8]
[394807532,1763971847406,-500.0,0.00038806,8]
[394807533,1763971847417,-500.0,0.00038806,8]
[394807534,1763971847431,-500.0,0.00038806,8]
[394807535,1763971847444,-594.06071205,0.00038806,8]
[394807536,1763971847456,-500.0,0.00038806,8]
[394807537,1763971847467,-268.69092995,0.00038806,8]
[394807538,1763971847479,-500.0,0.00038806,8]
[394807539,1763971847490,-509.82712471,0.00038806,8]
[394807540,1763971847504,-500.0,0.00038806,8]
[394807541,1763971847515,-500.0,0.00038806,8]
[394807542,1763971847529,-535.13289303,0.00038806,8]
[394807543,1763971847540,-552.1086928,0.00038806,8]
[394807544,1763971847554,-446.90092834,0.00038806,8]
[394807545,1763971847565,-500.0,0.00038806,8]
[394807546,1763971847577,-1000.0,0.00038806,8]
[394807547,1763971847588,-433.0091052,0.00038806,8]
[394807548,1763971847599,-500.0,0.00038806,8]
[394807549,1763971847610,-500.0,0.00038806,8]
[394807550,1763971847625,-500.0,0.00038806,8]
[394807551,1763971847637,-500.0,0.00038806,8]
[394807552,1763971847648,-500.0,0.00038806,8]
[394807553,1763971847661,-500.0,0.00038806,8]
[394807554,1763971847672,-500.0,0.00038806,8]
[394807555,1763971847683,-500.0,0.00038806,8]
[394807556,1763971847695,-500.0,0.00038806,8]
[394807557,1763971847706,-500.0,0.00038806,8]
[394807558,1763971847717,-182.11,0.00038806,8]
[394807559,1763971847728,-555.57305301,0.00038806,8]
[394807560,1763971847739,-500.0,0.00038806,8]
[394807561,1763971847750,-502.09509925,0.00038806,8]
[394807562,1763971847761,-500.0,0.00038806,8]
[394807563,1763971847923,-500.0,0.00038806,8]
[394807564,1763971847961,-500.0,0.00038806,8]
[394807565,1763971847972,-500.0,0.00038806,8]
[394807566,1763971847984,-500.0,0.00038806,8]
[394807567,1763971847995,-500.0,0.00038806,8]
[394807568,1763971848005,-500.0,0.00038806,8]
[394807569,1763971848016,-525.68908001,0.00038806,8]
[394807570,1763971848027,-191.49,0.00038806,8]
[394807572,1763971848037,-464.0063164,0.00038806,8]
[394807574,1763971848048,-500.0,0.00038806,8]
[394807576,1763971848058,-500.0,0.00038806,8]
[394807578,1763971848069,-513.34935857,0.00038806,8]
[394807580,1763971848079,-500.0,0.00038806,8]
[394807582,1763971848089,-500.0,0.00038806,8]
[394807584,1763971848099,-500.0,0.00038806,8]
[394807586,1763971848110,-500.0,0.00038806,8]
[394807588,1763971848120,-619.23,0.00038806,8]
[394807590,1763971848135,-500.0,0.00038806,8]
[394807592,1763971848145,-484.72866504,0.00038806,8]
[394807593,1763971848155,-500.0,0.00038806,8]
[394807594,1763971848166,-515.41,0.00038806,8]
[394807595,1763971848179,-500.0,0.00038806,8]
[394807596,1763971848190,-512.74,0.00038806,8]
[394807597,1763971848203,-500.0,0.00038806,2]
[394807598,1763971848214,-500.0,0.00038806,2]
[394807599,1763971848225,-500.0,0.00038806,2]
[394807600,1763971848235,-503.54230891,0.00038806,8]
[394807601,1763971848246,-606.158314,0.00038806,8]
[394807602,1763971848260,-492.42851354,0.00038806,8]
[394807603,1763971848270,-500.0,0.00038806,8]
[394807604,1763971848282,-500.0,0.00038806,8]
[394807605,1763971848293,-500.0,0.00038806,8]
[394807606,1763971848304,-500.0,0.00038806,8]
[394807607,1763971848314,-1229.22,0.00038806,8]
[394807608,1763971848325,-584.32,0.00038806,8]
[394807609,1763971848336,-500.0,0.00038806,8]
[394807610,1763971848347,-161.38624603,0.00038806,8]
[394807611,1763971848357,-417.03227325,0.00038806,8]
[394807612,1763971848368,-539.01047697,0.00038806,8]
[394807613,1763971848379,-507.73561911,0.00038806,8]
[394807614,1763971848389,-507.81,0.00038806,8]
[394807615,1763971848400,-500.0,0.00038806,8]
[394807616,1763971848412,-500.0,0.00038806,8]
[394807617,1763971848423,-511.71941003,0.00038806,8]
[394807618,1763971848434,-500.0,0.00038806,8]
[394807619,1763971848445,-500.0,0.00038806,8]
[394807620,1763971848456,-500.0,0.00038806,8]
[394807621,1763971848467,-543.78523529,0.00038806,8]
[394807622,1763971848478,-948.44,0.00038806,8]
[394807623,1763971848490,-461.11184908,0.00038806,8]
[394807624,1763971848501,-500.0,0.00038806,8]
[394807625,1763971848512,-500.0,0.00038806,2]
[394807626,1763971848524,-500.0,0.00038806,8]
[394807627,1763971848539,-500.0,0.00038806,8]
[394807628,1763971848550,-500.0,0.00038806,8]
[394807629,1763971848560,-500.0,0.00038806,8]
[394807630,1763971848570,-404.33337585,0.00038806,8]
[394807631,1763971848582,-500.0,0.00038806,8]
[394807632,1763971848592,-500.0,0.00038806,8]
[394807633,1763971848603,-508.89126024,0.00038806,8]
[394807634,1763971848614,-500.0,0.00038806,8]
[394807635,1763971848627,-500.0,0.00038806,8]
[394807636,1763971848638,-500.0,0.00038806,8]
[394807637,1763971848649,-500.0,0.00038806,8]
[394807638,1763971848660,-516.43059418,0.00038806,8]
[394807639,1763971848671,-500.0,0.00038806,8]
[394807640,1763971848682,-501.96697746,0.00038806,8]
[394807641,1763971848693,-312.18583311,0.00038806,8]
[394807642,1763971848703,-594.37171785,0.00038806,8]
[394807643,1763971848714,-500.0,0.00038806,8]
[394807644,1763971848724,-500.0,0.00038806,8]
[394807645,1763971848734,-500.0,0.00038806,8]
[394807646,1763971848745,-500.0,0.00038806,8]
[394807647,1763971848754,-588.02809845,0.00038806,8]
[394807648,1763971848765,-499.32392391,0.00038806,8]
[394807649,1763971848775,-500.0,0.00038806,8]
[394807650,1763971848787,-500.0,0.00038806,8]
[394807651,1763971848797,-500.0,0.00038806,8]
[394807652,1763971848807,-500.0,0.00038806,8]
[394807653,1763971848817,-301.31414032,0.00038806,8]
[394807654,1763971848827,-500.0,0.00038806,8]
[394807655,1763971848837,-531.67014476,0.00038806,8]
[394807656,1763971848847,-500.0,0.00038806,8]
[394807657,1763971848857,-500.0,0.00038806,8]
[394807658,1763971848867,-525.12440925,0.00038806,8]
[394807659,1763971848876,-5748.0,0.00038807,5]
[394807660,1763971848887,-600.0,0.00038807,30]
[394807661,1763971848897,-9376.88028723,0.00038807,2]
[394807662,1763971848908,-500.96785255,0.00038873,5]
[394807663,1763971848919,-500.0,0.00038873,5]
[394807664,1763971848930,-500.0,0.00038873,5]
[394807665,1763971848941,-500.0,0.00038873,5]
[394807666,1763971848958,-500.0,0.00038873,5]
[394807667,1763971848972,-213.25357626,0.00038873,5]
[394807668,1763971848983,-277.27918966,0.00038873,5]
[394807669,1763971848993,-368.86223502,0.00038873,5]
[394807670,1763971849003,-639.26901875,0.00038873,5]
[394807671,1763971849014,-504.41368828,0.00038873,5]
[394807672,1763971849025,-501.75431702,0.00038873,5]
[394807673,1763971849036,-500.0,0.00038873,5]
[394807674,1763971849046,-500.65345159,0.00038873,5]
[394807675,1763971849056,-2158.35838339,0.00038907,14]
[394807676,1763971849067,-1000.0,0.00038907,2]
[394807677,1763971849078,-150.0,0.00038949,7]
[394807678,1763971849088,-150.0,0.00038949,7]
[394807679,1763971849099,-295.86253637,0.00038969,2]
[394807680,1763971849109,-538.54,0.00038995,2]
[394807681,1763971849120,-302.0,0.00039,30]
[394807682,1763971849130,-522.85658756,0.00039006,8]
[394807683,1763971849140,-536.16144259,0.00039006,8]
[394807684,1763971849151,-176.07029951,0.00039006,8]
[394807685,1763971849161,-500.0,0.00039006,8]
[394807686,1763971849171,-500.0,0.00039006,8]
[394807687,1763971849182,-500.0,0.00039006,8]
[394807688,1763971849192,-500.0,0.00039006,7]
[394807689,1763971849203,-500.0,0.00039006,8]
[394807690,1763971849214,-500.0,0.00039006,8]
[394807691,1763971849224,-500.0,0.00039006,8]
[394807692,1763971849235,-500.0,0.00039006,8]
[394807693,1763971849245,-450.271918,0.00039006,8]
[394807694,1763971849255,-500.0,0.00039006,8]
[394807695,1763971849265,-500.0,0.00039006,8]
[394807696,1763971849276,-500.0,0.00039006,8]
[394807697,1763971849287,-500.0,0.00039006,8]
[394807698,1763971849297,-500.0,0.00039006,8]
[394807699,1763971849308,-500.0,0.00039006,8]
[394807700,1763971849318,-500.0,0.00039006,8]
[394807701,1763971849329,-500.0,0.00039006,8]
[394807702,1763971849339,-500.0,0.00039006,8]
[394807703,1763971849350,-521.03262577,0.00039006,8]
[394807704,1763971849361,-500.0,0.00039006,2]
[394807705,1763971849371,-197.22712095,0.00039007,8]
[394807706,1763971849382,-500.83107796,0.00039007,8]
[394807707,1763971849392,-500.0,0.00039007,8]
[394807708,1763971849402,-500.0,0.00039007,8]
[394807709,1763971849412,-500.0,0.00039007,8]
[394807710,1763971849422,-501.65209888,0.00039007,8]
[394807711,1763971849432,-500.0,0.00039007,8]
[394807712,1763971849442,-500.0,0.00039007,8]
[394807713,1763971849453,-500.0,0.00039007,8]
[394807714,1763971849463,-500.0,0.00039007,8]
[394807715,1763971849474,-500.0,0.00039007,8]
[394807716,1763971849484,-500.0,0.00039007,8]
[394807717,1763971849494,-500.0,0.00039007,8]
[394807718,1763971849505,-500.0,0.00039007,8]
[394807719,1763971849516,-500.0,0.00039007,8]
[394807720,1763971849530,-500.0,0.00039007,8]
[394807721,1763971849540,-513.16819226,0.00039007,8]
[394807722,1763971849551,-512.36239351,0.00039007,8]
[394807723,1763971849561,-505.47343478,0.00039007,8]
[394807724,1763971849571,-500.0,0.00039007,8]
[394807725,1763971849581,-500.0,0.00039007,8]
[394807726,1763971849592,-550.01482503,0.00039007,8]
[394807727,1763971849602,-500.0,0.00039007,8]
[394807728,1763971849612,-500.0,0.00039007,8]
[394807729,1763971849627,-500.0,0.00039007,8]
[394807730,1763971849638,-505.43434373,0.00039007,8]
[394807731,1763971849648,-500.0,0.00039007,8]
[394807732,1763971849660,-282.18123783,0.00039007,8]
[394807733,1763971849670,-502.30341196,0.00039007,8]
[394807734,1763971849680,-500.0,0.00039007,8]
[394807735,1763971849690,-500.0,0.00039007,8]
[394807736,1763971849702,-500.0,0.00039007,8]
[394807737,1763971849712,-500.0,0.00039007,8]
[394807738,1763971849721,-500.0,0.00039007,8]
[394807739,1763971849732,-527.85411308,0.00039007,8]
[394807740,1763971849742,-364.75587455,0.00039007,8]
[394807741,1763971849752,-500.0,0.00039007,8]
[394807742,1763971849762,-500.0,0.00039007,8]
[394807743,1763971849772,-638.90407634,0.00039007,8]
[394807744,1763971849782,-501.99415913,0.00039007,8]
[394807745,1763971849791,-500.0,0.00039007,8]
[394807746,1763971849801,-500.0,0.00039007,8]
[394807747,1763971849812,-505.48743476,0.00039007,8]
[394807748,1763971849821,-500.0,0.00039007,8]
[394807749,1763971849831,-251.56417173,0.00039007,8]
[394807750,1763971849841,-505.79373834,0.00039007,8]
[394807751,1763971849851,-507.82963851,0.00039007,8]
[394807752,1763971849861,-500.0,0.00039007,8]
[394807753,1763971849871,-500.0,0.00039007,8]
[394807754,1763971849880,-500.0,0.00039007,8]
[394807755,1763971849890,-500.0,0.00039007,8]
[394807756,1763971849900,-500.0,0.00039007,8]
[394807757,1763971849910,-377.32049029,0.00039007,8]
[394807758,1763971849923,-500.0,0.00039007,8]
[394807759,1763971849933,-500.0,0.00039007,8]
[394807760,1763971849943,-500.0,0.00039007,8]
[394807761,1763971849953,-629.53,0.00039007,8]
[394807762,1763971849962,-500.0,0.00039007,8]
[394807763,1763971849972,-500.0,0.00039007,8]
[394807764,1763971849982,-500.0,0.00039007,8]
[394807765,1763971849992,-643.27081144,0.00039007,8]
[394807766,1763971850002,-504.41589576,0.00039007,8]
[394807767,1763971850012,-504.10458289,0.00039007,8]
[394807768,1763971850022,-508.96786185,0.00039007,8]
[394807769,1763971850031,-500.0,0.00039007,8]
[394807770,1763971850041,-500.0,0.00039007,8]
[394807771,1763971850051,-509.38841321,0.00039007,8]
[394807772,1763971850060,-500.0,0.00039007,8]
[394807773,1763971850070,-500.0,0.00039007,8]
[394807774,1763971850081,-500.0,0.00039007,8]
[394807775,1763971850091,-500.0,0.00039007,8]
[394807776,1763971850100,-500.0,0.00039007,8]